[Event "Czech Open-GM 2022"]
[Site "Pardubice"]
[Date "2022.07.27"]
[Round "6.5"]
[White "Noe, Christopher"]
[Black "Niedbala, Bartlomiej"]
[Result "1-0"]
[ECO "D11"]
[WhiteElo "2505"]
[BlackElo "2381"]
[Annotator "TA"]
[PlyCount "111"]
[EventDate "2022.07.22"]
[EventType "swiss"]
[EventCountry "CZE"]
[SourceTitle "playchess.com"]
[Source "ChessBase"]
[SourceQuality "1"]
[TimeControl "40/5400+30:1800+30"]

{[%evp 10,110,14,12,14,19,10,0,0,3,18,20,13,18,10,7,5,9,0,0,0,0,14,0,24,0,0,0,13,29,36,36,36,27,43,12,11,11,11,12,56,27,39,22,16,5,2,0,37,46,91,93,91,90,95,93,82,33,50,39,131,38,145,149,183,183,183,183,183,183,181,174,177,169,396,396,396,396,378,364,356,354,344,337,330,322,300,297,508,271,29983,29984,29994,29995,29995,29995,29996,29997,29997,29998,29998,29999,29999]} 1. d4 {[%emt 0:00:04]} d5 {[%emt 0:01:39]} 2. c4 {[%emt 0:00:03]} c6 {[%emt 0:00:07]} 3. Nf3 {[%emt 0:08:02]} Nf6 {[%emt 0:04:44]} 4. Qc2 {[%emt 0:00:07]} dxc4 {[%emt 0:00:08]} 5. Qxc4 {[%emt 0:00:15]} Bg4 {[%emt 0:00:04]} 6. Nbd2 {[%emt 0:02:24]} Nbd7 {[%emt 0:00:16] D23: Queen's Gambit Accepted: 3 Nf3 Nf6 sidelines.} 7. g3 {[%emt 0:02:04]} e6 {[%emt 0:00:38]} 8. Bg2 {[%emt 0:00:57]} Be7 {[%emt 0:00:09] The position is equal.} 9. O-O {[%emt 0:04:18]} O-O {[%emt 0:01:02]} 10. b3 {[%emt 0:24:44]} Rc8 {[%emt 0:07:51]} 11. Bb2 {[%emt 0:05:11]} b5 {[%emt 0:11:20]} 12. Qc2 {[%emt 0:03:14]} c5 {[%emt 0:02:26]} 13. Rfc1 {[%emt 0:14:11]} Qb6 14. a4 a6 {[%emt 0:09:35]} 15. axb5 {[%emt 0:00:34]} axb5 {[%emt 0:00:06] [#]} 16. h3 $146 {[%emt 0:07:51]} ({Predecessor:} 16. Qd1 h6 17. Qf1 Bf5 18. e3 c4 19. bxc4 bxc4 20. Bc3 Bd3 21. Qd1 Nd5 22. Bf1 {½-½ (30) Sasikiran,K (2640)-Le,Q (2699) Al Ain 2015}) 16... Bh5 {[%emt 0:07:27]} 17. Qc3 {[%emt 0:01:27]} Nd5 {[%emt 0:24:15]} 18. Qa5 {[%emt 0:09:45]} Qb8 {[%emt 0:04:54]} (18... c4 $5 19. bxc4 bxc4 20. Qxb6 N7xb6 $11) 19. Qa7 Rc7 {[%emt 0:03:00]} 20. Qxb8 {[%emt 0:00:38]} Rxb8 {[%emt 0:00:02]} 21. dxc5 {[%emt 0:00:32]} Rxc5 {[%emt 0:01:55]} 22. Ra7 {[%emt 0:01:56]} Rxc1+ {[%emt 0:04:54]} 23. Bxc1 {[%emt 0:00:02]} Rd8 {[%emt 0:03:16]} 24. Bb2 {[%emt 0:01:50]} Bb4 {[%emt 0:01:59]} 25. Ne4 {[%emt 0:02:12]} (25. g4 $5 {[%cal Rg4h5]} Bg6 26. Nd4 $1 $14) 25... Nc5 {[%emt 0:02:46] Against Rb7} 26. Nxc5 {[%emt 0:03:42]} (26. Ne5 {feels hotter.} Nxb3 27. Nc6 Rc8 28. Nxb4 Nxb4 29. Ra3) 26... Bxc5 {[%emt 0:00:06]} 27. Rb7 {[%emt 0:02:18]} b4 {[%emt 0:01:04]} 28. e3 {[%emt 0:01:36]} Rc8 {[%emt 0:04:06]} 29. Ne5 {[%emt 0:01:37]} Bf8 {[%emt 0:02:43]} 30. g4 {[%emt 0:02:25] White is more active.} Bg6 {[%emt 0:00:03]} 31. Nxg6 {[%emt 0:00:29]} hxg6 {[%emt 0:00:02]} 32. Bxd5 {[%emt 0:00:58]} exd5 $16 {[%emt 0:00:02][%mdl 4096] Endgame KRB-KRB} 33. Rd7 {[%emt 0:00:26]} ({White should play} 33. h4 $16) 33... Rc2 $14 {[%emt 0:01:59]} 34. Bd4 {[%emt 0:00:04]} f6 {[%emt 0:00:41] [#] White leaves nothing to chance now.} (34... g5 $1 $14) 35. Kg2 {[%emt 0:00:23]} ({Much less strong is} 35. Rxd5 $6 Rc1+ 36. Kg2 Rb1 $14) (35. h4 $1 $16) 35... Rc1 {[%emt 0:00:25] [#]} (35... g5 $14) 36. h4 $1 $16 {[%emt 0:00:16][%cal Bh3h4,Bh4g5][%mdl 32]} ({Don't play} 36. Rxd5 $6 Rb1 $14) 36... Rb1 {[%emt 0:01:01]} 37. g5 {[%emt 0:01:19]} ({Resist} 37. Rxd5 Kf7 $14) 37... fxg5 {[%emt 0:01:34]} 38. hxg5 {[%emt 0:00:05]} Rxb3 {[%emt 0:00:01]} 39. Rxd5 {[%emt 0:00:12]} Kf7 {[%emt 0:01:04]} 40. Rb5 {[%emt 0:00:21]} Rb1 {[%emt 0:00:33]} 41. f4 {[%emt 0:31:52]} b3 $2 {[%emt 0:14:09]} (41... Ke6 42. Kf3 Rc1) 42. Kf3 $18 {[%emt 0:00:00]} Rf1+ {[%emt 0:11:34]} 43. Ke4 {[%emt 0:00:00]} Rb1 {[%emt 0:00:04]} 44. Rb7+ {[%emt 0:00:00]} Kg8 45. Kd5 {[%emt 0:00:00]} Kh7 {[%emt 0:03:09]} 46. Ke6 {[%emt 0:00:00] Kf7 would kill now.} Kg8 {[%emt 0:01:57]} 47. Rb8 {[%emt 0:00:00] Intending Bc5 and mate.} Rc1 {Against Bc5} 48. Rxb3 {[%emt 0:00:00] aiming for Rb8.} Rc4 $2 {[%emt 0:00:37]} (48... Rc6+ 49. Kd5 Rd6+ 50. Kc4 Rd7) 49. Rb7 {[%emt 0:00:00] Threatens to win with Rb8.} Kh7 $2 {[%emt 0:00:10]} (49... Rc6+ $18 50. Ke5 Ra6) 50. Kf7 {[%emt 0:00:00] White mates.} Bd6 {[%emt 0:02:38]} 51. f5 {[%emt 0:00:00][%cal Bf4f5,Bf5g6][%mdl 32]} Bf8 {[%emt 0:01:09]} 52. fxg6+ {[%emt 0:00:00]} Kh8 {[%emt 0:00:04]} 53. Bxg7+ {[%emt 0:00:00]} Bxg7 {[%emt 0:00:03]} 54. Rb8+ {[%emt 0:00:00]} Rc8 {[%emt 0:00:06]} 55. Rxc8+ {[%emt 0:00:00]} Bf8 {[%emt 0:00:04]} 56. Rxf8# {[%emt 0:00:00] Weighted Error Value: White=0.11 (very precise) /Black=0.39} 1-0

[Event "Czech Open-GM 2022"]
[Site "Pardubice"]
[Date "2022.07.27"]
[Round "6.6"]
[White "Dobrowolski, Piotr"]
[Black "Simek, Petr"]
[Result "1/2-1/2"]
[ECO "C65"]
[WhiteElo "2423"]
[BlackElo "2348"]
[Annotator "TA"]
[PlyCount "98"]
[EventDate "2022.07.22"]
[EventType "swiss"]
[EventCountry "CZE"]
[SourceTitle "playchess.com"]
[Source "ChessBase"]
[SourceQuality "1"]
[TimeControl "40/5400+30:1800+30"]

{[%evp 9,98,19,17,11,20,14,16,7,0,0,11,0,0,0,-3,-9,-4,-16,-8,-13,0,0,0,-29,-29,-44,18,8,22,0,18,-28,11,-15,-15,-16,-20,-18,0,-7,30,18,30,20,18,0,16,14,14,14,16,18,14,16,17,13,10,10,20,6,15,10,20,6,7,-14,8,0,0,0,0,0,0,0,0,0,0,0,0,0,0,0,0,-12,0,0,10,10,11,0,0]} 1. e4 {[%emt 0:00:10]} e5 {[%emt 0:02:21]} 2. Nf3 {[%emt 0:00:25]} Nc6 {[%emt 0:00:13]} 3. Bb5 {[%emt 0:00:09]} Nf6 {[%emt 0:00:20][%cal Bg8f6,Bf6d7,Bd7c5][%mdl 32]} 4. d3 {[%emt 0:01:02]} Bc5 {[%emt 0:00:06]} 5. Bxc6 {[%emt 0:01:19]} dxc6 {[%emt 0:00:08]} 6. Nbd2 {[%emt 0:00:32] C65: Ruy Lopez: Berlin Defence (3...Nf6), unusual lines and 4 0-0 Bc5.} Nd7 {[%emt 0:02:23]} 7. Nc4 {[%emt 0:01:19]} O-O {[%emt 0:03:28]} 8. Be3 {[%emt 0:01:59]} f6 {[%emt 0:02:09]} 9. O-O {[%emt 0:01:59]} Rf7 {[%emt 0:05:19]} 10. Nh4 {[%emt 0:04:59]} Bf8 {[%emt 0:00:37] [#]} 11. Nf5 $146 {[%emt 0:31:48]} ({Predecessor:} 11. Kh1 Nb6 12. Na5 Na4 13. Qe1 Qe8 14. b3 Nc5 15. g3 b6 16. Nc4 Bh3 17. Rg1 {1-0 (52) Robson,R (2645)-Zherebukh,Y (2636) Columbus 2017}) 11... Nc5 {[%emt 0:01:01]} 12. Qf3 {[%emt 0:03:25]} Ne6 {[%emt 0:06:19]} 13. Qg3 {[%emt 0:03:33] [#] Hoping for Nh6+.} Kh8 {[%emt 0:01:08]} 14. Qh4 {[%emt 0:04:05]} b5 {[%emt 0:32:04]} 15. Na5 {[%emt 0:03:20]} Qe8 {[%emt 0:01:19]} 16. c3 {[%emt 0:09:11]} c5 {[%emt 0:02:21]} 17. Rfd1 {[%emt 0:02:07]} a6 {[%emt 0:02:52]} ({Black should play} 17... b4 $15) 18. f3 {[%emt 0:08:21]} Rb8 {[%emt 0:08:15]} 19. Rac1 {[%emt 0:05:52][%cal Ob2b4]} Bd7 {[%emt 0:01:25]} 20. a3 {[%emt 0:02:35]} (20. Rc2 $142) 20... Qd8 {[%emt 0:05:07]} 21. b4 {[%emt 0:05:10]} cxb4 $1 {[%emt 0:01:04]} 22. cxb4 {[%emt 0:00:01]} c5 $1 {[%emt 0:00:08] Prevents d4.} 23. Qe1 {[%emt 0:00:01][%cal Rb4c5]} cxb4 {[%emt 0:13:30]} 24. axb4 {[%emt 0:00:02]} Qe8 {[%emt 0:00:10]} (24... g6 $5 {[%cal Rg6f5]} 25. Ng3 Be8 $11) 25. Nb3 {[%emt 0:02:58]} Rc8 {[%emt 0:01:02]} 26. Rxc8 {[%emt 0:00:59]} Bxc8 {[%emt 0:00:35] The position is equal.} 27. Rc1 {[%emt 0:00:36]} Rd7 {[%emt 0:02:18]} 28. d4 {[%emt 0:04:52]} exd4 {[%emt 0:00:05]} (28... g6 {feels hotter.} 29. dxe5 gxf5 30. exf5 Rd3) 29. Nfxd4 {[%emt 0:00:15] Pair of Knights!} Rc7 {[%emt 0:06:03]} 30. Rxc7 {[%emt 0:00:11]} Nxc7 {[%emt 0:00:01]} 31. Qc3 {[%emt 0:00:07]} Ne6 {[%emt 0:01:02]} 32. Nxe6 {[%emt 0:01:56]} Bxe6 {[%emt 0:00:01]} 33. Nc5 {[%emt 0:00:50]} Bc8 {[%emt 0:01:08]} 34. Bd4 {[%emt 0:00:27]} Qc6 {[%emt 0:00:20]} 35. Kf2 {[%emt 0:00:17]} h6 {[%emt 0:00:45]} 36. Be3 {[%emt 0:01:03]} Kh7 {[%emt 0:00:37]} 37. Qd4 {[%emt 0:00:20]} (37. g4 {is interesting.} Qd6 38. Kg2 Qd1 39. Qd3) 37... Qd6 {[%emt 0:00:09]} (37... Qc7 {looks sharper.} 38. h3 a5 39. bxa5 Qxa5 40. Qd5 Qc3) 38. Qxd6 {[%emt 0:00:26]} Bxd6 $11 {[%emt 0:00:01][%mdl 4096] Endgame KBB-KBN} 39. f4 {[%emt 0:00:31]} Kg8 {[%emt 0:00:30]} 40. g3 {[%emt 0:00:28]} Kf7 {[%emt 0:00:10]} 41. Bd4 {[%emt 0:30:30]} Bc7 {[%emt 0:06:04]} 42. Nb3 {[%emt 0:00:00]} g6 {[%emt 0:05:41]} 43. Ke3 {[%emt 0:00:00]} f5 {[%emt 0:00:56]} 44. Be5 {[%emt 0:00:00]} Bb6+ {[%emt 0:00:07]} 45. Bd4 {[%emt 0:00:00]} Bd8 {[%emt 0:00:30]} 46. Bc5 {[%emt 0:00:00]} Be6 {[%emt 0:04:57]} 47. Na5 {[%emt 0:00:00]} Ba2 {[%emt 0:02:19]} 48. Nc6 {[%emt 0:00:00]} Bc7 {[%emt 0:00:04]} 49. Ne5+ {[%emt 0:00:00]} Bxe5 {[%emt 0:00:55] Weighted Error Value: White=0.08 (flawless) /Black=0.09 (flawless)} 1/2-1/2

[Event "Czech Open-GM 2022"]
[Site "Pardubice"]
[Date "2022.07.27"]
[Round "6.7"]
[White "Gnojek, Petr"]
[Black "Hollan, Martin"]
[Result "1-0"]
[ECO "E33"]
[WhiteElo "2295"]
[BlackElo "2399"]
[Annotator "TA"]
[PlyCount "125"]
[EventDate "2022.07.22"]
[EventType "swiss"]
[EventCountry "CZE"]
[SourceTitle "playchess.com"]
[Source "ChessBase"]
[SourceQuality "1"]
[TimeControl "40/5400+30:1800+30"]

{[%evp 15,125,31,36,41,39,37,43,39,43,41,60,74,50,52,68,52,168,98,92,73,96,74,155,154,393,386,395,376,376,389,392,357,535,512,511,285,274,204,190,193,308,106,114,114,118,99,182,106,200,81,110,76,301,308,275,166,293,279,469,471,2141,862,660,617,1804,1503,2190,2172,2210,2281,2279,2209,2186,2165,2165,2002,1772,1671,1671,1622,1581,1570,1541,1552,1548,1541,1519,1519,1470,1431,1422,1394,1295,1220,1110,818,793,786,1225,1225,4694,2058,29978,29978,29980,29981,29981,29982,29984,29985,29986,29986]} 1. d4 {[%emt 0:00:04]} Nf6 {[%emt 0:00:09]} 2. c4 {[%emt 0:00:08]} e6 {[%emt 0:00:09]} 3. Nc3 {[%emt 0:00:08]} Bb4 {[%emt 0:00:18]} 4. Qc2 {[%emt 0:00:09]} Nc6 {[%emt 0:00:07]} 5. Nf3 {[%emt 0:00:06]} d6 {[%emt 0:00:50]} 6. Bd2 {[%emt 0:00:12]} O-O {[%emt 0:02:04]} 7. a3 {[%emt 0:00:09]} Bxc3 {[%emt 0:00:10]} 8. Bxc3 {[%emt 0:00:06]} Qe7 {[%emt 0:00:19]} 9. e4 {[%emt 0:00:09] E33: Nimzo-Indian: Classical: 4...Nc6.} e5 {[%emt 0:02:08]} 10. d5 {[%emt 0:00:09]} Nb8 {[%emt 0:01:44]} 11. Be2 {[%emt 0:00:12] White is slightly better.} Nh5 {[%emt 0:01:20]} 12. g3 {[%emt 0:00:17] Against Nf4} g6 {[%emt 0:02:42]} 13. Bd2 {[%emt 0:19:55][%cal Bc3d2,Bd2h6,Bh6e3][%mdl 32] [#]} Ng7 $146 {[%emt 0:05:54]} ({Predecessor:} 13... f5 14. Bh6 Ng7 15. Ng5 fxe4 16. h4 e3 17. fxe3 Bf5 18. e4 Bd7 19. c5 a5 {1-0 (33) Golod,V (2602)-Heinemann,T (2484) Germany 2010}) 14. h4 {[%emt 0:05:04]} h5 {[%emt 0:04:57]} 15. O-O-O {[%emt 0:03:12]} c5 {[%emt 0:23:50]} (15... c6 $14) 16. Rhg1 {[%emt 0:09:19]} ({Better is} 16. Nh2 $1 $18) 16... Bg4 $16 {[%emt 0:03:53][%cal Ob7b5]} 17. Bh6 {[%emt 0:04:32]} Kh7 {[%emt 0:13:15]} 18. Be3 {[%emt 0:00:14]} Bxf3 {[%emt 0:01:49]} (18... Kg8 $142) 19. Bxf3 {[%emt 0:00:05][%cal Be2f3,Bf3e4,Be4g6,Bg6h5][%mdl 32]} f5 {[%emt 0:00:06] Inhibits g4.} (19... Rh8 $16 20. Bg5 Qe8) 20. exf5 $18 {[%emt 0:02:23]} (20. Bg5 Qe8 $16) 20... Nxf5 {[%emt 0:03:48]} 21. Be4 {[%emt 0:00:44]} (21. Bg5 Qe8 $16) 21... Kh8 {[%emt 0:04:33]} 22. g4 {[%emt 0:04:21]} (22. Bg5 Qh7 $16) 22... Nxe3 {[%emt 0:00:24]} 23. fxe3 {[%emt 0:00:04]} Qxh4 {[%emt 0:00:05]} (23... Nd7 $142 24. gxh5 (24. Bxg6 e4 $18) 24... gxh5) 24. Bxg6 {[%emt 0:00:31]} Qg5 {[%emt 0:00:34]} 25. Bxh5 {[%emt 0:03:28]} ({Less strong is} 25. gxh5 Qxe3+ 26. Kb1 Nd7 $18) 25... Nd7 {[%emt 0:10:38]} 26. Rh1 {[%emt 0:01:50]} Kg7 {[%emt 0:01:02]} (26... Qxe3+ 27. Kb1 Rf3 28. g5 $18) 27. Kb1 $40 {[%emt 0:00:56][%mdl 128] Black is in trouble.} Rf3 {[%emt 0:09:41] [#]} (27... Rad8 $142 28. Qb3 Nb6) 28. Rdf1 $2 {[%emt 0:16:48]} (28. Be8 $1 $18 {[%mdl 512] is the precise move to win.} Nf6 29. Bd7 $1) 28... Rxf1+ $16 {[%emt 0:00:15]} 29. Rxf1 {[%emt 0:00:03] Really sharp!} Rf8 {[%emt 0:00:05] Inhibits Rf7+.} 30. Rh1 {[%emt 0:00:04] Strongly threatening Qa4. 0x0.0002deb18b94dp-1022s more active pieces.} Nf6 {[%emt 0:02:21]} (30... e4 $16) 31. Qb3 {[%emt 0:01:37]} (31. Ka2 $18) 31... Nxh5 {[%emt 0:03:30]} (31... b6 $16) 32. gxh5 {[%emt 0:00:21][%mdl 4096] Endgame KQR-KQR} (32. Rxh5 $18 {and the rest is easy.} Qg6+ 33. Ka2) 32... Rf7 {[%emt 0:00:35]} 33. Qd1 {[%emt 0:06:25] Hoping for Rg1.} Kh7 $2 {[%emt 0:00:43]} (33... Rf2 $16 {might work better.}) 34. Rg1 $18 {[%emt 0:04:11]} Qf5+ {[%emt 0:00:11]} 35. Ka2 {[%emt 0:00:20] And now Rg6 would win.} a6 {[%emt 0:02:01]} (35... Qe4 {was called for.}) 36. Rg6 {[%emt 0:03:44]} Rf6 $2 {[%emt 0:00:43]} (36... Qe4 {was worth a try.} 37. Qc1 (37. Rxd6 Qxc4+ 38. Qb3 Qe4 $18) 37... Rd7) 37. e4 {[%emt 0:00:49]} Qf4 {[%emt 0:01:31]} (37... Qf1 $142 38. Qxf1 Rxf1 39. Rxd6 Rf4) 38. Rxf6 {[%emt 0:00:09]} (38. Qg1 $142 Rf7 39. h6 Qxh6 40. Rxh6+ Kxh6 41. Qh2+ Kg6 42. Qg2+ Kh5 43. Qh3+ Kg5 44. Qh8) 38... Qxf6 {[%emt 0:00:03] KQ-KQ} 39. Qg4 {[%emt 0:00:03]} Kh6 {[%emt 0:00:39]} 40. Qe6 {[%emt 0:06:57]} Kg5 {[%emt 0:00:09] [#]} 41. Qxf6+ $1 {[%emt 0:30:05]} Kxf6 {[%emt 0:30:05] KP-KP} 42. b4 {[%emt 0:00:03]} b6 {[%emt 0:00:00]} 43. bxc5 {[%emt 0:00:00]} bxc5 {[%emt 0:00:00]} 44. Kb3 {[%emt 0:00:00]} Kg5 {[%emt 0:00:00] [#]} 45. Ka4 $1 {[%emt 0:00:00]} Kxh5 {[%emt 0:00:00]} 46. Ka5 {[%emt 0:00:00] Threatening mate with Kb6.} Kg4 {[%emt 0:00:00]} 47. Kb6 {[%emt 0:00:00] Kc6 would kill now.} ({Inferior is} 47. Kxa6 Kf3 $11) 47... Kf4 {[%emt 0:00:00]} 48. Kc6 {[%emt 0:00:00]} Kxe4 {[%emt 0:00:00]} 49. Kxd6 {[%emt 0:00:00]} Kf4 {[%emt 0:00:00]} 50. Kxc5 {[%emt 0:00:00] K3P-KPP} e4 51. d6 {[%emt 0:00:00] White wants to mate with d7.} e3 {[%emt 0:00:00]} 52. d7 {[%emt 0:00:00]} e2 {[%emt 0:00:00]} 53. d8=Q {[%emt 0:00:00] Intending Qd2+ and mate.} e1=Q {[%emt 0:00:00] Against Qd2+. KQ-KQ} 54. Qd4+ {[%emt 0:00:00]} Kg3 {[%emt 0:00:00]} 55. Kb6 {[%emt 0:00:00] Threatens to win with c5.} Qe6+ {[%emt 0:00:00]} 56. Ka5 {[%emt 0:00:00]} Qe7 {[%emt 0:00:00]} 57. a4 {[%emt 0:00:00]} Qe8 {[%emt 0:03:39]} 58. c5 {[%emt 0:00:00][%cal Bc4c5,Bc5c6,Bc6c7][%mdl 32] White threatens Qc3+ and mate.} Kf3 {[%emt 0:01:31]} 59. Qd5+ {[%emt 0:00:00] White mates.} Ke3 {[%emt 0:00:40]} 60. c6 {[%emt 0:00:00]} Qe7 {[%emt 0:01:09]} 61. Kxa6 {[%emt 0:00:00]} Qe8 {[%emt 0:00:50]} 62. Kb7 {[%emt 0:00:00]} Kf2 {[%emt 0:00:49]} 63. c7 {[%emt 0:00:00] Weighted Error Value: White=0.31/Black=0.56} 1-0

[Event "Czech Open-GM 2022"]
[Site "Pardubice"]
[Date "2022.07.27"]
[Round "6.8"]
[White "Stalmach, Richard"]
[Black "Klabis, Rokas"]
[Result "1-0"]
[ECO "E25"]
[WhiteElo "2363"]
[BlackElo "2382"]
[Annotator "TA"]
[PlyCount "83"]
[EventDate "2022.07.22"]
[EventType "swiss"]
[EventCountry "CZE"]
[SourceTitle "playchess.com"]
[Source "ChessBase"]
[SourceQuality "1"]
[TimeControl "40/5400+30:1800+30"]

{[%evp 18,83,6,-2,62,52,89,90,96,61,75,44,45,39,164,156,151,151,147,124,128,119,118,129,110,117,114,114,122,115,140,144,139,149,177,195,185,180,247,210,293,313,272,102,104,111,1045,1116,1107,935,875,874,801,657,714,629,2320,1772,12799,5173,6203,6591,12794,9759,12791,5173,2349,1998]} 1. d4 {[%emt 0:01:08]} Nf6 {[%emt 0:00:12]} 2. c4 {[%emt 0:00:23]} e6 {[%emt 0:00:21]} 3. Nc3 {[%emt 0:00:09]} Bb4 {[%emt 0:00:15]} 4. f3 {[%emt 0:00:06]} d5 {[%emt 0:04:57]} 5. a3 {[%emt 0:00:26]} Bxc3+ {[%emt 0:00:05]} 6. bxc3 {[%emt 0:00:05]} c5 {[%emt 0:01:17]} 7. cxd5 {[%emt 0:00:09]} Nxd5 {[%emt 0:02:16]} 8. dxc5 {[%emt 0:00:23]} Qa5 {[%emt 0:01:09]} 9. e4 {[%emt 0:00:15]} Nf6 {[%emt 0:05:41]} 10. Be3 {[%emt 0:00:48]} Qxc3+ {[%emt 0:04:41] E25: Nimzo-Indian: Sämisch: 5...c5 6 f3 d5 7 cxd5.} ({Black should play} 10... O-O $11) 11. Kf2 $14 {[%emt 0:00:10]} Nc6 {[%emt 0:06:05]} 12. Ne2 {[%emt 0:01:35]} Qe5 {[%emt 0:08:09] White is better.} 13. Qc1 {[%emt 0:10:38] [#]} Qc7 $146 {[%emt 0:05:09]} ({Predecessor:} 13... O-O 14. Bf4 Qh5 15. Ng3 Qg6 16. Bd6 Re8 17. e5 Nd7 18. Qc3 f6 19. Bd3 Qh6 20. exf6 Nxf6 {½-½ (60) Van Dijk,T-Skovgaard,T (2065) Copenhagen 2001}) 14. h4 {[%emt 0:07:59][%cal Bh2h4,Bh4h5][%mdl 32]} Bd7 {[%emt 0:10:02]} 15. Rb1 {[%emt 0:04:54]} Ne7 {[%emt 0:05:29]} ({Black should try} 15... O-O $14) 16. Qb2 $18 {[%emt 0:09:38]} Rb8 {[%emt 0:15:25]} 17. h5 {[%emt 0:10:00]} h6 {[%emt 0:07:47]} 18. Bd4 {[%emt 0:00:45]} Nc6 {[%emt 0:00:06]} 19. Bxf6 {[%emt 0:08:44]} gxf6 {[%emt 0:00:08]} 20. Qxf6 {[%emt 0:01:10]} Qe5 {[%emt 0:04:37]} 21. Qxe5 {[%emt 0:00:07]} Nxe5 {[%emt 0:00:03]} 22. Nd4 {[%emt 0:00:12]} Ke7 {[%emt 0:00:19]} 23. Be2 {[%emt 0:00:43]} Bc6 {[%emt 0:04:09]} 24. Rb2 {[%emt 0:02:34]} Rhc8 {[%emt 0:06:01]} 25. Rhb1 {[%emt 0:00:24] White is more active.} Nd7 {[%emt 0:00:13]} 26. Nxc6+ {[%emt 0:06:30]} bxc6 {[%emt 0:00:03]} 27. Rb7 {[%emt 0:01:03]} Kf6 {[%emt 0:01:25]} (27... Ke8 {might work better.} 28. Ke3 Ra8) 28. Ke3 {[%emt 0:05:27]} Rg8 {[%emt 0:03:41]} 29. f4 {[%emt 0:04:41]} e5 {[%emt 0:00:54] [#]} 30. g4 $2 (30. fxe5+ $1 $18 {is the precise move to win.} Kxe5 31. g4 (31. Rxb8 Rxb8 32. Rb4 a5 $16)) 30... exf4+ $16 {[%emt 0:00:14]} 31. Kxf4 {[%emt 0:13:15]} Rge8 {[%emt 0:02:32][%mdl 8192] Inhibits e5+.} (31... Rxb7 $16 32. Rxb7 Ne5) 32. Rxb8 $18 {[%emt 0:05:05] White is clearly winning.} Rxb8 {[%emt 0:00:04][%mdl 4096] Endgame KRB-KRN} 33. e5+ {[%emt 0:00:12]} Kg7 {[%emt 0:00:08]} 34. Rxb8 {[%emt 0:00:09]} Nxb8 {[%emt 0:00:04] KB-KN} 35. e6 {[%emt 0:01:55] [#] e7 would kill now.} Kf6 {[%emt 0:01:17]} 36. exf7 {[%emt 0:00:03]} Kxf7 {[%emt 0:00:03]} 37. Ke5 {[%emt 0:00:04]} Ke7 {[%emt 0:00:04]} 38. Kf5 {[%emt 0:00:02] And now Kg6 would win.} Nd7 {[%emt 0:00:43]} 39. Kg6 {[%emt 0:00:33] Strongly threatening Kh7.} Nxc5 {[%emt 0:00:04]} 40. Kxh6 {[%emt 0:00:13]} Ne6 {[%emt 0:00:12]} 41. Bc4 {[%emt 0:30:43] White wants to mate with Bxe6.} Nd4 {[%emt 0:32:01]} 42. Kg7 {[%emt 0:00:22] Weighted Error Value: White=0.13 (very precise) /Black=0.31} 1-0